[Event "KAZ-ch Open 2019"]
[Site "Almaty"]
[Date "2019.04.28"]
[Round "7.2"]
[White "Kazhgaleyev, Murtas"]
[Black "Nogerbek, Kazybek"]
[Result "1-0"]
[ECO "D35"]
[WhiteElo "2578"]
[BlackElo "2341"]
[Annotator "RC"]
[PlyCount "174"]
[EventDate "2019.04.21"]
[EventType "tourn"]
[EventCountry "KAZ"]
[SourceTitle "playchess.com"]
[Source "ChessBase"]
[SourceQuality "1"]
[TimeControl "40/5400+30:1800+30"]

1. d4 {[%emt 0:01:22]} Nf6 {[%emt 0:00:00]} 2. c4 {[%emt 0:00:05]} e6 {[%emt 0:00:00]} 3. Nc3 {[%emt 0:00:03]} d5 {[%emt 0:00:00]} 4. cxd5 {[%emt 0:00:05]} exd5 {[%emt 0:00:02]} 5. Bg5 {[%emt 0:00:07]} Be7 {[%emt 0:00:07]} 6. e3 {[%emt 0:00:14]} Nbd7 {[%emt 0:00:17]} 7. Bd3 {[%emt 0:01:09]} O-O {[%emt 0:00:38]} 8. Nf3 {[%emt 0:00:58]} c6 {[%emt 0:00:53]} 9. Qc2 {[%emt 0:00:09]} Re8 {[%emt 0:00:52]} 10. O-O {[%emt 0:01:10]} h6 {[%emt 0:00:15]} 11. Bf4 {[%emt 0:01:33]} Bf8 {[%emt 0:03:34]} 12. h3 {[%emt 0:02:32]} a6 {[%emt 0:02:27]} 13. Bh2 {[%emt 0:10:22]} b5 {[%emt 0:05:17]} 14. Ne5 {[%emt 0:03:24]} Bb7 {[%emt 0:03:27]} 15. Rad1 {[%emt 0:07:09]} Bd6 {[%emt 0:05:00]} 16. f4 {[%emt 0:03:56]} c5 {[%emt 0:03:56]} 17. g4 {[%emt 0:02:10]} cxd4 {[%emt 0:08:24]} 18. exd4 {[%emt 0:01:53]} Bb4 {[%emt 0:11:44]} 19. Qb3 {[%emt 0:10:07]} Bxc3 {[%emt 0:04:02]} 20. bxc3 {[%emt 0:01:37]} Qe7 {[%emt 0:04:38]} 21. Qb4 {[%emt 0:18:27]} Ne4 {[%emt 0:04:45]} 22. Bxe4 {[%emt 0:06:35]} dxe4 {[%emt 0:01:46]} 23. d5 {[%emt 0:00:27]} Qxb4 {[%emt 0:05:57]} 24. cxb4 {[%emt 0:01:24]} Nb6 {[%emt 0:01:26]} 25. d6 {[%emt 0:01:20]} f6 {[%emt 0:01:49]} 26. Ng6 {[%emt 0:00:10]} Rad8 {[%emt 0:01:07]} 27. f5 {[%emt 0:02:45]} Rd7 {[%emt 0:01:49]} 28. Rfe1 {[%emt 0:02:46]} Nc4 {[%emt 0:02:09]} 29. Rd4 {[%emt 0:01:35]} e3 {[%emt 0:02:55]} 30. Bf4 {[%emt 0:01:50]} Kf7 {[%emt 0:01:34]} 31. Kh2 {[%emt 0:03:46]} Nd2 {[%emt 0:08:05]} 32. Nh4 {[%emt 0:00:15]} Nc4 {[%emt 0:03:20]} 33. Kg3 {[%emt 0:01:06]} Bc6 {[%emt 0:02:13]} 34. Ng2 {[%emt 0:04:26]} Bxg2 {[%emt 0:02:58]} 35. Kxg2 {[%emt 0:00:12]} Red8 {[%emt 0:04:45]} 36. Kf3 {[%emt 0:03:13]} Nxd6 {[%emt 0:00:04]} 37. Red1 {[%emt 0:00:42]} Ke7 {[%emt 0:00:01]} 38. Bxe3 {[%emt 0:00:21]} Nb7 {[%emt 0:00:48]} 39. Rxd7+ {[%emt 0:01:29]} Rxd7 {[%emt 0:00:08]} 40. Rc1 {[%emt 0:00:00]} a5 {[%emt 0:00:00]} 41. a3 {[%emt 0:07:10]} axb4 {[%emt 0:05:11]} 42. axb4 {[%emt 0:00:05]} Kf7 {[%emt 0:02:29]} 43. Rc6 {[%emt 0:09:39]} Nd6 {[%emt 0:01:47]} 44. Bf4 {[%emt 0:01:53]} Nc4 {[%emt 0:01:51]} 45. Ke4 {[%emt 0:02:32]} Rd1 {[%emt 0:03:30]} 46. Rc5 {[%emt 0:02:03]} Na3 {[%emt 0:03:12]} 47. Rc8 {[%emt 0:01:03]} Nc4 {[%emt 0:02:28]} 48. Rb8 {[%emt 0:00:34]} Na3 {[%emt 0:00:30]} 49. Be3 {[%emt 0:01:48]} Rd7 {[%emt 0:02:45]} 50. Bc5 {[%emt 0:01:40]} g6 {[%emt 0:00:07]} 51. Rb6 {[%emt 0:02:07]} Nb1 {[%emt 0:03:00]} 52. Rd6 {[%emt 0:01:40]} Nc3+ {[%emt 0:05:10]} 53. Kd3 {[%emt 0:00:59]} Rxd6+ {[%emt 0:00:12]} 54. Bxd6 {[%emt 0:00:01]} Nd1 {[%emt 0:01:31]} 55. Bc5 {[%emt 0:01:35]} Nb2+ {[%emt 0:00:27]} 56. Ke4 {[%emt 0:00:07]} Nc4 {[%emt 0:01:10]} 57. Kd5 {[%emt 0:01:22]} h5 {[%emt 0:03:48]} 58. gxh5 {[%emt 0:00:18]} gxh5 {[%emt 0:00:06]} 59. Kc6 {[%emt 0:00:23]} Na3 {[%emt 0:00:02]} 60. h4 {[%emt 0:01:56]} Ke8 {[%emt 0:01:00]} 61. Bd4 {[%emt 0:00:26]} Nc2 {[%emt 0:01:21]} 62. Kc5 {[%emt 0:00:36]} Kd7 {[%emt 0:01:12]} 63. Bf2 {[%emt 0:02:08]} Na3 {[%emt 0:00:19]} 64. Be3 {[%emt 0:00:21]} Nc4 {[%emt 0:01:56]} 65. Bf4 {[%emt 0:00:19]} Na3 {[%emt 0:00:05]} 66. Be3 {[%emt 0:02:13]} Nc4 {[%emt 0:00:04]} 67. Bd4 {[%emt 0:00:17]} Nd6 {[%emt 0:00:05]} 68. Kd5 {[%emt 0:00:32]} Nxf5 {[%emt 0:00:05]} 69. Bxf6 {[%emt 0:00:03]} Ng3 {[%emt 0:02:39]} 70. Bg5 {[%emt 0:00:25]} Nf5 {[%emt 0:00:08]} 71. Ke5 {[%emt 0:00:41]} Ng3 {[%emt 0:00:51]} 72. Bd2 {[%emt 0:00:51]} Ke7 {[%emt 0:01:41]} 73. Be1 {[%emt 0:00:07]} Nf1 {[%emt 0:00:05]} 74. Kd5 {[%emt 0:01:04]} Kd7 {[%emt 0:00:53]} 75. Kc5 {[%emt 0:00:07]} Kc7 {[%emt 0:01:08]} 76. Kxb5 {[%emt 0:00:08]} Kb7 {[%emt 0:00:00]} 77. Kc5 {[%emt 0:00:46]} Nh2 {[%emt 0:00:38]} 78. Kd5 {[%emt 0:00:57]} Nf3 {[%emt 0:00:41]} 79. Bf2 {[%emt 0:00:17]} Ka6 {[%emt 0:00:51]} 80. Ke4 {[%emt 0:00:13]} Nd2+ {[%emt 0:01:03]} 81. Kf4 {[%emt 0:00:14]} Kb5 {[%emt 0:00:17]} 82. Be1 {[%emt 0:01:10]} Nc4 {[%emt 0:00:47]} 83. Kg5 {[%emt 0:00:20]} Ne5 {[%emt 0:00:02]} 84. Kxh5 {[%emt 0:00:30]} Nf3 {[%emt 0:00:06]} 85. Bc3 {[%emt 0:00:15]} Kc4 {[%emt 0:00:06]} 86. Kg4 {[%emt 0:00:19]} Nh2+ {[%emt 0:00:03]} 87. Kf4 {[%emt 0:00:09]} Kd5 {Ke4+} 1-0

[Event "KAZ-ch Open 2019"]
[Site "Almaty"]
[Date "2019.04.28"]
[Round "7.3"]
[White "Makhnev, Denis"]
[Black "Ibrayev, Nurlan"]
[Result "1/2-1/2"]
[ECO "E06"]
[WhiteElo "2483"]
[BlackElo "2379"]
[Annotator "RC"]
[PlyCount "138"]
[EventDate "2019.04.21"]
[EventType "tourn"]
[EventCountry "KAZ"]
[SourceTitle "playchess.com"]
[Source "ChessBase"]
[SourceQuality "1"]
[TimeControl "40/5400+30:1800+30"]

1. d4 Nf6 2. c4 e6 3. g3 d5 4. Bg2 Be7 5. Nf3 O-O 6. O-O c6 7. Nbd2 b6 8. Qc2 Bb7 9. e4 Na6 10. e5 Nd7 11. cxd5 Nb4 12. Qb1 Nxd5 13. Ne4 h6 14. a3 a5 15. Bd2 c5 16. dxc5 Nxc5 17. Nxc5 bxc5 18. Qe4 Qb6 19. Qg4 Kh7 20. Rfe1 Qb3 21. Bc1 Nc7 22. Nd2 Qb5 23. Ne4 Rad8 24. h4 Rd7 25. Qh5 Nd5 26. Ng5+ Kg8 27. Nh3 Nc7 28. Qg4 Kh7 29. Bxb7 Qxb7 30. Nf4 Nd5 31. Nh5 Rg8 32. Qf3 Bf8 33. g4 g6 34. Ng3 Bg7 35. h5 Qc7 36. hxg6+ fxg6 37. Qh1 Rh8 38. g5 Kg8 39. Qe4 Ne7 40. gxh6 Bxh6 41. Qg4 {[%emt 2:03:15]} Qc6 {[%emt 1:51:31]} 42. Bxh6 {[%emt 0:00:10]} Rxh6 {[%emt 0:00:04]} 43. Rad1 {[%emt 0:00:06]} Nd5 {[%emt 0:00:47]} 44. Qg5 {[%emt 0:01:05]} Kg7 {[%emt 0:06:00]} 45. Re4 {[%emt 0:00:37]} Rf7 {[%emt 0:00:25]} 46. Rd2 {[%emt 0:01:17]} Qb7 {[%emt 0:15:43]} 47. Qg4 {[%emt 0:05:03]} Qe7 {[%emt 0:00:51]} 48. Rd3 {[%emt 0:01:01]} Qf8 {[%emt 0:00:46]} 49. Qxe6 {[%emt 0:05:27]} Nf4 {[%emt 0:02:17]} 50. Rxf4 {[%emt 0:00:04]} Rxf4 {[%emt 0:00:02]} 51. Rd7+ {[%emt 0:00:04]} Rf7 {[%emt 0:01:37]} 52. Ne4 {[%emt 0:00:04]} Rxd7 {[%emt 0:03:37]} 53. Qxd7+ {[%emt 0:00:03]} Kh8 {[%emt 0:00:01]} 54. Nf6 {[%emt 0:01:35]} g5 {[%emt 0:00:41]} 55. e6 {[%emt 0:00:28]} Qa8 {[%emt 0:00:41]} 56. Nd5 {[%emt 0:02:02]} Qb8 {[%emt 0:00:08]} 57. Qc7 {[%emt 0:03:23]} Qxb2 {[%emt 0:01:01]} 58. Kg2 {[%emt 0:00:19]} Qd4 {[%emt 0:00:59]} 59. Qc8+ {[%emt 0:00:41]} Kh7 {[%emt 0:00:53]} 60. Qd7+ {[%emt 0:00:04]} Kh8 {[%emt 0:00:12]} 61. Qe8+ {[%emt 0:01:08]} Kh7 {[%emt 0:00:16]} 62. Qd7+ {[%emt 0:00:50]} Kh8 {[%emt 0:00:01]} 63. Qe8+ {[%emt 0:01:18]} Kh7 {[%emt 0:00:02]} 64. Qf7+ {[%emt 0:00:30]} Qg7 {[%emt 0:00:16]} 65. Qf5+ {[%emt 0:00:03]} Kg8 {[%emt 0:02:47]} 66. e7 {[%emt 0:00:09]} Qf7 {[%emt 0:00:08]} 67. Qc8+ {[%emt 0:02:05]} Kh7 {[%emt 0:00:57]} 68. Qd7 {[%emt 0:00:34]} Rh2+ {[%emt 0:00:27]} 69. Kxh2 {[%emt 0:00:05]} Qxf2+ {[%emt 0:00:04]} 1/2-1/2

[Event "KAZ-ch Open 2019"]
[Site "Almaty"]
[Date "2019.04.28"]
[Round "7.5"]
[White "Moisseyenko, Ilya"]
[Black "Kvan, Andrey"]
[Result "0-1"]
[ECO "A05"]
[WhiteElo "2329"]
[BlackElo "2286"]
[Annotator "NA"]
[PlyCount "188"]
[EventDate "2019.04.21"]
[EventType "tourn"]
[EventCountry "KAZ"]
[SourceTitle "playchess.com"]
[Source "ChessBase"]
[SourceQuality "1"]
[TimeControl "40/5400+30:1800+30"]

1. Nf3 {[%emt 0:00:00]} Nf6 {[%emt 0:00:00]} 2. g3 {[%emt 0:00:00]} g6 {[%emt 0:00:00]} 3. Bg2 {[%emt 0:00:00]} Bg7 {[%emt 0:00:00]} 4. O-O {[%emt 0:00:00]} O-O {[%emt 0:00:01]} 5. c4 {[%emt 0:00:00]} c6 {[%emt 0:00:19]} 6. Qc2 {[%emt 0:02:51]} d5 {[%emt 0:00:21]} 7. b3 {[%emt 0:00:12]} Nbd7 {[%emt 0:03:57]} 8. Bb2 {[%emt 0:00:09]} a6 {[%emt 0:01:03] A11: English Opening: 1...c6} (8... Re8 9. cxd5 cxd5 10. Rc1 e5 11. Qc7 Qxc7 12. Rxc7 b6 13. Nc3 e4 14. Nd4 Bf8 15. d3 a6 16. dxe4 dxe4 17. Rd1 Rb8 {1-0 (75) Artemiev,V (2696)-Mikaelyan,A (2503) St Petersburg 2017}) 9. d3 {[%emt 0:02:27]} Re8 {[%emt 0:03:43]} 10. cxd5 $146 {[%emt 0:09:20]} ({Predecessor:} 10. Nbd2 Nf8 11. Rac1 Bg4 12. Rfe1 N8d7 13. cxd5 Nxd5 14. Bxg7 Kxg7 15. Qb2+ {½-½ (50) Pancevski,F (2507)-Jacimovic,D (2374) Skopje 2015}) 10... cxd5 {[%emt 0:03:12]} 11. Nbd2 {[%emt 0:00:12]} Nf8 {[%emt 0:08:22]} 12. Rac1 {[%emt 0:01:02]} Bd7 {[%emt 0:10:25]} 13. Ne5 {[%emt 0:05:55]} Rc8 {[%emt 0:05:15]} 14. Qb1 {[%emt 0:00:05]} Qa5 {[%emt 0:00:16]} 15. Ndf3 {[%emt 0:03:37]} Be6 {[%emt 0:10:05]} 16. Nd4 {[%emt 0:10:56]} Qb6 {[%emt 0:04:42]} 17. Qa1 {[%emt 0:07:56]} N8d7 {[%emt 0:11:21]} 18. Nxe6 {[%emt 0:00:40]} Qxe6 {[%emt 0:03:13]} 19. Bf3 {[%emt 0:01:59]} Bh6 {[%emt 0:04:21]} 20. e3 {[%emt 0:02:06]} Nxe5 {[%emt 0:03:27]} 21. Bxe5 {[%emt 0:00:05]} Nd7 {[%emt 0:00:14]} 22. Bb2 {[%emt 0:01:10]} b5 {[%emt 0:02:16]} 23. Kg2 {[%emt 0:04:52]} Qd6 {[%emt 0:01:05]} 24. Rxc8 {[%emt 0:01:01]} Rxc8 {[%emt 0:00:02]} 25. Rc1 {[%emt 0:00:06]} Rxc1 {[%emt 0:02:01]} 26. Qxc1 {[%emt 0:00:05]} Bg7 {[%emt 0:00:23]} 27. Qc8+ {[%emt 0:07:01]} Nf8 {[%emt 0:00:18]} 28. d4 {[%emt 0:00:53]} Bf6 {[%emt 0:02:01]} 29. a4 {[%emt 0:02:32]} e6 {[%emt 0:04:58]} 30. Be2 {[%emt 0:03:36]} bxa4 {[%emt 0:00:27]} 31. bxa4 {[%emt 0:00:11]} Qb4 {[%emt 0:03:35]} 32. Qc2 {[%emt 0:02:01]} a5 {[%emt 0:00:19]} 33. Bb5 {[%emt 0:02:24]} Bd8 {[%emt 0:01:21]} 34. h4 {[%emt 0:07:07]} h5 {[%emt 0:01:11]} 35. Qc8 {[%emt 0:05:22]} Qd6 {[%emt 0:00:11]} 36. Qc1 {[%emt 0:02:56]} Be7 {[%emt 0:01:23]} 37. Bc3 {[%emt 0:00:24]} Qc7 {[%emt 0:00:16]} 38. Qd2 {[%emt 0:00:05]} Bd8 {[%emt 0:00:06]} 39. e4 {[%emt 0:02:41]} Nh7 {[%emt 0:02:44]} 40. e5 {[%emt 0:00:00]} Kg7 {[%emt 0:00:00]} 41. Qe3 {[%emt 0:02:20]} Qe7 {[%emt 0:04:07]} 42. Qe1 {[%emt 0:00:54]} Qc7 {[%emt 0:00:24]} 43. Bd3 {[%emt 0:00:13]} Nf8 {[%emt 0:00:35]} 44. Kh3 {[%emt 0:01:17]} Qa7 {[%emt 0:01:03]} 45. f3 {[%emt 0:01:59]} Bb6 {[%emt 0:05:29]} 46. Qe3 {[%emt 0:00:08]} Qc7 {[%emt 0:00:14]} 47. Bd2 {[%emt 0:00:37]} Kg8 {[%emt 0:02:14]} 48. g4 {[%emt 0:00:09]} hxg4+ {[%emt 0:00:29]} 49. fxg4 {[%emt 0:01:49]} Qc6 {[%emt 0:01:44]} 50. Bb5 {[%emt 0:04:56]} Qc2 {[%emt 0:00:10]} 51. Qf2 {[%emt 0:05:03]} Qe4 {[%emt 0:08:57]} 52. Be3 {[%emt 0:07:59]} g5 {[%emt 0:02:18]} 53. hxg5 {[%emt 0:02:40]} Ng6 {[%emt 0:00:49]} 54. Kg3 {[%emt 0:05:17]} Nxe5 {[%emt 0:02:54]} 55. Qf4 {[%emt 0:00:57]} Qxf4+ {[%emt 0:01:32]} 56. Kxf4 {[%emt 0:00:05]} Ng6+ {[%emt 0:00:15]} 57. Kf3 {[%emt 0:00:04]} Kg7 {[%emt 0:00:09]} 58. Ke2 {[%emt 0:00:20]} Bc7 {[%emt 0:00:40]} 59. Bd2 {[%emt 0:01:05]} Bb6 {[%emt 0:01:45]} 60. Kf3 {[%emt 0:03:50]} Kf8 {[%emt 0:01:34]} 61. Bd3 {[%emt 0:00:33]} Ne7 {[%emt 0:00:10]} 62. Bb5 {[%emt 0:00:30]} Kg7 {[%emt 0:01:05]} 63. Be3 {[%emt 0:01:14]} Nc8 {[%emt 0:00:54]} 64. Ke2 {[%emt 0:03:48]} Bd8 {[%emt 0:03:03]} 65. Bd2 {[%emt 0:01:09]} Ne7 {[%emt 0:02:26]} 66. Kf3 {[%emt 0:00:28]} Ng6 {[%emt 0:00:16]} 67. Bd3 {[%emt 0:00:57]} Nf8 {[%emt 0:00:36]} 68. Kg3 {[%emt 0:01:11]} Bc7+ {[%emt 0:01:47]} 69. Kh3 {[%emt 0:01:00]} Ng6 {[%emt 0:00:49]} 70. Kg2 {[%emt 0:03:41]} Nf4+ {[%emt 0:00:38]} 71. Bxf4 $1 {[%emt 0:00:04]} Bxf4 {[%emt 0:00:06]} 72. Kf3 $19 {[%emt 0:00:06]} (72. g6 $1 $15) 72... Bxg5 {[%emt 0:00:06]} 73. Bb5 {[%emt 0:00:12]} Kf8 {[%emt 0:00:05]} 74. Ke2 {[%emt 0:00:34]} Ke7 {[%emt 0:00:07]} 75. Kd3 {[%emt 0:00:01]} f6 {[%emt 0:00:12]} 76. Ba6 {[%emt 0:00:38]} Kd6 {[%emt 0:00:09]} 77. Bc8 {[%emt 0:00:05]} e5 {[%emt 0:00:22]} 78. Bb7 {[%emt 0:00:27]} Bc1 {[%emt 0:00:17]} 79. Bc8 {[%emt 0:00:20]} Bb2 {[%emt 0:00:43]} 80. g5 {[%emt 0:01:13]} fxg5 {[%emt 0:04:45]} 81. dxe5+ {[%emt 0:00:12]} Kxe5 {[%emt 0:00:05]} 82. Bd7 {[%emt 0:00:37]} Bd4 {[%emt 0:00:42]} 83. Bc8 {[%emt 0:00:04]} Bg1 {[%emt 0:00:17]} 84. Bd7 {[%emt 0:00:30]} Kf4 {[%emt 0:00:16]} 85. Bc6 {[%emt 0:00:32]} d4 {[%emt 0:00:08]} 86. Ke2 {[%emt 0:00:01]} g4 {[%emt 0:00:37]} 87. Bd7 {[%emt 0:00:32]} Be3 {[%emt 0:00:46]} 88. Bc8 {[%emt 0:00:10]} Bc1 {[%emt 0:00:35]} 89. Ba6 {[%emt 0:01:19]} Ba3 {[%emt 0:00:24]} 90. Bb5 {[%emt 0:00:07]} Bc5 {[%emt 0:00:08]} 91. Ba6 {[%emt 0:00:15]} Kg3 {[%emt 0:00:27]} 92. Bc8 {[%emt 0:00:29]} d3+ {[%emt 0:00:40]} 93. Kxd3 {[%emt 0:00:37]} Kf3 {[%emt 0:00:12]} 94. Bb7+ {[%emt 0:04:01]} Kf2 {[%emt 0:00:08]} 0-1

[Event "KAZ-ch Open 2019"]
[Site "Almaty"]
[Date "2019.04.30"]
[Round "9.4"]
[White "Moisseyenko, Ilya"]
[Black "Ibrayev, Nurlan"]
[Result "0-1"]
[ECO "A61"]
[WhiteElo "2329"]
[BlackElo "2379"]
[Annotator "NA"]
[PlyCount "54"]
[EventDate "2019.04.21"]
[EventType "tourn"]
[EventCountry "KAZ"]
[SourceTitle "playchess.com"]
[Source "ChessBase"]
[SourceQuality "1"]
[TimeControl "40/5400+30:1800+30"]

1. d4 {[%emt 0:00:00]} Nf6 {[%emt 0:00:00]} 2. Nf3 {[%emt 0:00:00]} e6 {[%emt 0:00:00]} 3. c4 {[%emt 0:00:00]} c5 {[%emt 0:00:11]} 4. d5 {[%emt 0:00:00]} d6 {[%emt 0:00:07]} 5. Nc3 {[%emt 0:00:00]} exd5 {[%emt 0:00:05]} 6. cxd5 {[%emt 0:00:00]} g6 {[%emt 0:00:04]} 7. e4 {[%emt 0:00:03]} a6 {[%emt 0:01:45]} 8. a4 {[%emt 0:00:05]} Bg4 {[%emt 0:01:02]} 9. Qb3 {[%emt 0:00:20]} Bxf3 {[%emt 0:17:35] A70: Modern Benoni: 6 e4 g6 7 Nf3} 10. Qxb7 {[%emt 0:00:08]} Nbd7 {[%emt 0:00:09]} 11. gxf3 {[%emt 0:00:04]} Bg7 {[%emt 0:02:53]} 12. Qb3 {[%emt 0:09:34]} ({White should play} 12. Qc6 $14 Qb8 (12... Rb8 13. a5 O-O 14. Qxd6 Nh5 15. f4 Bd4 16. Be2 Qh4 17. Qxd7 {1-0 (42) Mamedyarov,S (2646)-Papaioannou,I (2578) Gothenburg 2005}) 13. a5 (13. Bxa6 O-O $11)) 12... O-O {[%emt 0:00:56]} 13. Be2 {[%emt 0:00:32]} Nh5 {[%emt 0:07:24]} 14. f4 {[%emt 0:01:49]} Qh4 {[%emt 0:00:20]} 15. Bxh5 {[%emt 0:00:14]} Qxh5 {[%emt 0:00:06]} 16. Qd1 $146 {[%emt 0:00:37]} (16. O-O $17) ({Predecessor:} 16. Ne2 Rfe8 17. Ng3 {0-1 (28) Dzevlan,M (2453)-Wedberg,T (2539) Sweden 2006}) 16... Qh3 {[%emt 0:00:26]} 17. f3 {[%emt 0:08:15]} f5 {[%emt 0:07:20]} 18. Bd2 {[%emt 0:09:07]} Rab8 {[%emt 0:06:00]} 19. Qe2 {[%emt 0:03:07]} Rxb2 {[%emt 0:01:16]} 20. Rc1 {[%emt 0:01:09]} Re8 {[%emt 0:11:56]} 21. Kd1 {[%emt 0:01:36]} Nf6 {[%emt 0:14:25]} 22. Rc2 {[%emt 0:04:31]} Rb4 {[%emt 0:02:12]} 23. e5 {[%emt 0:02:23]} dxe5 {[%emt 0:03:15]} 24. fxe5 {[%emt 0:00:04]} Rxe5 {[%emt 0:00:13]} 25. Qxe5 {[%emt 0:00:04]} Qxf3+ {[%emt 0:00:04]} 26. Kc1 {[%emt 0:00:05]} Qxh1+ {[%emt 0:00:14]} 27. Be1 $19 {[%emt 0:01:29]} (27. Nd1 Re4 28. Qd6) 27... Re4 {[%emt 0:00:35]} 0-1

[Event "KAZ-ch Open 2019"]
[Site "Almaty"]
[Date "2019.04.30"]
[Round "9.6"]
[White "Urazayev, Arystanbek"]
[Black "Kvan, Andrey"]
[Result "1/2-1/2"]
[ECO "B14"]
[WhiteElo "2446"]
[BlackElo "2286"]
[Annotator "ChessBase"]
[PlyCount "56"]
[EventDate "2019.04.21"]
[EventType "tourn"]
[EventCountry "KAZ"]
[SourceTitle "playchess.com"]
[Source "ChessBase"]
[SourceQuality "1"]
[TimeControl "40/5400+30:1800+30"]

1. e4 {[%emt 0:00:00]} c6 {[%emt 0:00:00]} 2. d4 {[%emt 0:00:35]} d5 {[%emt 0:00:00]} 3. exd5 {[%emt 0:00:04]} cxd5 {[%emt 0:00:00]} 4. c4 {[%emt 0:00:03]} Nf6 {[%emt 0:00:00]} 5. Nc3 {[%emt 0:00:04]} e6 {[%emt 0:00:00]} 6. Nf3 {[%emt 0:00:10]} Be7 {[%emt 0:00:03]} 7. cxd5 {[%emt 0:00:12]} Nxd5 {[%emt 0:00:33]} 8. Bd3 {[%emt 0:00:20]} Nc6 {[%emt 0:00:23]} 9. O-O {[%emt 0:00:10]} Nxc3 {[%emt 0:03:48]} 10. bxc3 {[%emt 0:00:06]} O-O {[%emt 0:00:07]} 11. Qe2 {[%emt 0:06:40]} Qa5 {[%emt 0:04:30]} 12. Bb2 {[%emt 0:02:34]} Bf6 {[%emt 0:02:28]} 13. Rfd1 {[%emt 0:02:02]} Qh5 {[%emt 0:01:39]} 14. c4 {[%emt 0:02:36]} Ne7 {[%emt 0:02:53]} 15. Be4 {[%emt 0:05:13]} Rb8 {[%emt 0:04:39]} 16. h3 {[%emt 0:05:22]} b5 {[%emt 0:12:52]} 17. d5 {[%emt 0:11:10]} Bxb2 {[%emt 0:09:57]} 18. Qxb2 {[%emt 0:00:09]} Bb7 {[%emt 0:00:21]} 19. Qxb5 {[%emt 0:06:39]} f5 {[%emt 0:02:48]} 20. d6 {[%emt 0:15:51]} Bxe4 {[%emt 0:11:33]} 21. dxe7 {[%emt 0:00:14]} Rxb5 {[%emt 0:07:02]} 22. exf8=Q+ {[%emt 0:00:35]} Kxf8 {[%emt 0:00:02]} 23. cxb5 {[%emt 0:00:08]} Bxf3 {[%emt 0:00:09]} 24. gxf3 {[%emt 0:00:05]} Ke7 {[%emt 0:00:03]} 25. Kg2 {[%emt 0:23:39]} Qg5+ {[%emt 0:00:19]} 26. Kf1 {[%emt 0:00:06]} Qf4 {[%emt 0:00:22]} 27. Kg2 {[%emt 0:00:06]} Qg5+ {[%emt 0:00:39]} 28. Kf1 {[%emt 0:00:04]} Qf4 {[%emt 0:00:05]} 1/2-1/2

[Event "KAZ-ch Open 2019"]
[Site "Almaty"]
[Date "2019.05.01"]
[Round "10.1"]
[White "Agmanov, Zhandos"]
[Black "Kvan, Andrey"]
[Result "1-0"]
[ECO "B12"]
[WhiteElo "2394"]
[BlackElo "2286"]
[Annotator "NA"]
[PlyCount "71"]
[EventDate "2019.04.21"]
[EventType "tourn"]
[EventCountry "KAZ"]
[SourceTitle "playchess.com"]
[Source "ChessBase"]
[SourceQuality "1"]
[TimeControl "40/5400+30:1800+30"]

1. e4 {[%emt 0:00:00]} c6 {[%emt 0:00:00]} 2. d4 {[%emt 0:00:00]} d5 {[%emt 0:00:00]} 3. e5 {[%emt 0:00:07]} c5 {[%emt 0:00:00]} 4. dxc5 {[%emt 0:00:15]} Nc6 {[%emt 0:00:00]} 5. a3 {[%emt 0:00:13]} e6 {[%emt 0:00:03]} 6. b4 {[%emt 0:01:33] B12: Caro-Kann: Advance Variation} (6. Nf3 Bxc5 7. b4 Bb6 8. b5 Nb8 9. Bb2 a6 10. a4 Nh6 11. Be2 axb5 12. axb5 Rxa1 13. Bxa1 {1-0 (40) Grischuk,A (2771)-Navara,D (2739) Shamkir 2019}) 6... a5 {[%emt 0:00:08]} 7. b5 {[%emt 0:05:50]} Nxe5 {[%emt 0:00:12]} 8. Bb2 {[%emt 0:02:19]} f6 $146 {[%emt 0:00:06]} ({Predecessor:} 8... Ng6 9. a4 Bd7 10. Nd2 Nf6 11. Nb3 Rc8 12. Bd3 Bxc5 13. Nxc5 Rxc5 {0-1 (43) Petrenko,S (2162)-Radeva,V (2125) Braila 2016}) 9. Bd4 {[%emt 0:32:21]} Ng6 {[%emt 0:00:55]} 10. f3 {[%emt 0:02:21]} e5 {[%emt 0:01:06]} 11. Bf2 {[%emt 0:00:05]} a4 {[%emt 0:08:33]} 12. Nc3 {[%emt 0:10:45]} d4 {[%emt 0:11:46]} 13. Ne4 {[%emt 0:00:09]} f5 {[%emt 0:00:17]} 14. Nd6+ {[%emt 0:02:25]} Bxd6 {[%emt 0:00:07]} 15. cxd6 {[%emt 0:00:06]} Nf6 {[%emt 0:00:12]} 16. c3 {[%emt 0:03:59]} Qa5 {[%emt 0:06:54]} ({Don't take} 16... Qxd6 17. cxd4 e4 18. Nh3 $17) ({Less strong is} 16... dxc3 17. Bc4 $11) (16... Be6 $19 {has better winning chances.} 17. Ne2 Bb3) 17. Rc1 {[%emt 0:00:17]} Bd7 {[%emt 0:11:35]} 18. Qd2 {[%emt 0:07:28]} Rc8 {[%emt 0:03:27]} 19. Ne2 {[%emt 0:05:56]} Bxb5 {[%emt 0:13:24]} 20. cxd4 {[%emt 0:00:23]} Rxc1+ {[%emt 0:00:14]} 21. Nxc1 {[%emt 0:00:07]} Qxd2+ {[%emt 0:00:18]} 22. Kxd2 {[%emt 0:00:01]} Bxf1 {[%emt 0:00:13]} 23. Rxf1 {[%emt 0:00:14]} Kd7 {[%emt 0:00:47]} 24. Nd3 {[%emt 0:00:27]} exd4 {[%emt 0:09:58]} 25. Rb1 {[%emt 0:00:38]} Kxd6 {[%emt 0:09:50]} 26. Rxb7 {[%emt 0:00:21]} Nd7 {[%emt 0:05:26]} 27. Rb4 {[%emt 0:02:41]} Ra8 {[%emt 0:02:36]} 28. Rxd4+ {[%emt 0:04:17]} Kc6 {[%emt 0:03:26]} 29. Nb4+ {[%emt 0:01:49]} Kc7 {[%emt 0:00:17]} 30. Nd5+ {[%emt 0:00:07]} Kc6 $16 {[%emt 0:00:19]} 31. Nb4+ {[%emt 0:01:31]} Kc7 {[%emt 0:00:05]} 32. Rc4+ {[%emt 0:00:20]} Kd6 {[%emt 0:01:50]} 33. Rc6+ {[%emt 0:01:43]} Ke5 {[%emt 0:01:04]} 34. Kc3 {[%emt 0:03:52]} Ne7 {[%emt 0:05:41]} 35. Bd4+ {[%emt 0:01:05]} Kf4 {[%emt 0:00:07]} 36. Re6 {[%emt 0:00:15]} 1-0

[Event "KAZ-ch Open 2019"]
[Site "Almaty"]
[Date "2019.05.01"]
[Round "10.2"]
[White "Kostenko, Petr"]
[Black "Urazayev, Arystanbek"]
[Result "1-0"]
[ECO "A28"]
[WhiteElo "2450"]
[BlackElo "2446"]
[Annotator "RC"]
[PlyCount "49"]
[EventDate "2019.04.21"]
[EventType "tourn"]
[EventCountry "KAZ"]
[SourceTitle "playchess.com"]
[Source "ChessBase"]
[SourceQuality "1"]
[TimeControl "40/5400+30:1800+30"]

1. c4 {[%emt 0:00:00]} e5 {[%emt 0:00:05]} 2. Nc3 {[%emt 0:00:00]} Nc6 {[%emt 0:00:43]} 3. e3 {[%emt 0:00:22]} Nf6 {[%emt 0:04:23]} 4. Nf3 {[%emt 0:00:11]} Be7 {[%emt 0:03:57]} 5. Qb3 {[%emt 0:03:28]} O-O {[%emt 0:01:58]} 6. Be2 {[%emt 0:00:03]} Re8 {[%emt 0:06:16]} 7. O-O {[%emt 0:03:11]} Bf8 {[%emt 0:02:40]} 8. d4 {[%emt 0:03:16]} exd4 {[%emt 0:07:14]} 9. exd4 {[%emt 0:00:28]} d6 {[%emt 0:00:08]} 10. h3 {[%emt 0:09:09]} h6 {[%emt 0:07:13]} 11. Bf4 {[%emt 0:08:42]} Ne4 {[%emt 0:09:21]} 12. Nxe4 {[%emt 0:07:41]} Rxe4 {[%emt 0:00:58]} 13. Be3 {[%emt 0:00:06]} Re8 {[%emt 0:02:29]} 14. d5 {[%emt 0:03:08]} Ne5 {[%emt 0:04:38]} 15. Qc3 {[%emt 0:03:40]} Nxf3+ {[%emt 0:01:20]} 16. Bxf3 {[%emt 0:00:04]} Bf5 {[%emt 0:01:01]} 17. Rfe1 {[%emt 0:02:03]} b6 {[%emt 0:03:36]} 18. Bd1 {[%emt 0:04:07]} Qh4 {[%emt 0:06:48]} 19. Rc1 {[%emt 0:05:40]} Be7 {[%emt 0:04:59]} 20. Bd4 {[%emt 0:21:06]} Bg5 {[%emt 0:04:00]} 21. Ba4 {[%emt 0:00:43]} Rxe1+ {[%emt 0:11:30]} 22. Rxe1 {[%emt 0:00:12]} Kh7 {[%emt 0:00:32]} 23. Be8 {[%emt 0:00:57]} Be4 {[%emt 0:12:37]} 24. g3 {[%emt 0:01:09]} Qxh3 {[%emt 0:01:38]} 25. Rxe4 {[%emt 0:00:06]} 1-0